bitfinex-derivatives/quotes_ETHF0:USTF0_20250501
["timestamp","ask_amount","ask_price","bid_price","bid_amount"]
[1746061679822,1.10891,1803.5,1803.4,1.28224218]
[1746061680323,1.10891,1803.5,1803.4,0.17332218]
[1746061680324,4.89691,1803.5,1803.4,0.17332218]
[1746061680522,1.10896,1803.4,1803.3,48.12600758]
[1746061680830,4.31676,1803.4,1803.3,49.23502758]
[1746061681117,31.3708,1803.4,1803.3,49.40835982]
[1746061682127,28.163,1803.4,1803.3,42.08235224]
[1746061686527,28.163,1803.4,1803.3,41.90902]
[1746061686927,28.163,1803.4,1803.3,45.42173775]
[1746061687127,28.163,1803.4,1803.3,49.20973775]
[1746061689228,28.163,1803.4,1803.3,45.42173775]
[1746061689529,28.163,1803.4,1803.3,59.37687708]
[1746061689828,20.78728138,1803.6,1803.5,1.10889]
[1746061690334,20.78728138,1803.6,1803.5,1.28220775]
[1746061691331,20.78728138,1803.6,1803.5,0.17331775]
[1746061691728,20.78728138,1803.6,1803.5,1.28220775]
[1746061692029,19.67844138,1803.6,1803.5,1.28220775]
[1746061692430,21.64687138,1803.6,1803.5,1.28220775]
[1746061692634,20.53804138,1803.6,1803.5,1.28220775]
[1746061693429,19.67844138,1803.6,1803.5,1.28220775]
[1746061693629,19.67844138,1803.6,1803.5,4.49000775]
[1746061693934,19.67844138,1803.6,1803.5,6.12060775]
[1746061694231,19.67844138,1803.6,1803.5,13.4490657]
[1746061694726,19.67844138,1803.6,1803.5,13.44903806]
[1746061695226,19.67844138,1803.6,1803.5,17.23703806]
[1746061696132,19.67844138,1803.6,1803.5,14.02923806]
[1746061696933,19.67844138,1803.6,1803.5,31.5584104]
[1746061697234,19.67844138,1803.6,1803.5,27.7704104]
[1746061697532,19.67844138,1803.6,1803.5,30.9782104]
[1746061697733,19.67844138,1803.6,1803.5,29.3476104]
[1746061698631,21.34774138,1803.6,1803.5,29.3476104]
[1746061705334,22.14774138,1803.6,1803.5,26.1398104]
[1746061705735,23.25657138,1803.6,1803.5,26.1398104]
[1746061705936,23.25657138,1803.6,1803.5,25.0309204]
[1746061706136,27.04457138,1803.6,1803.5,25.0309204]
[1746061706337,27.04457138,1803.6,1803.5,26.1398104]
[1746061706635,25.93574138,1803.6,1803.5,26.1398104]
[1746061706838,27.04457138,1803.6,1803.5,26.1398104]
[1746061707135,25.93574138,1803.6,1803.5,1.28218011]
[1746061708039,25.13574138,1803.6,1803.5,1.28218011]
[1746061708232,21.34774138,1803.6,1803.5,2.94978011]
[1746061709030,21.34774138,1803.6,1803.5,6.15758011]
[1746061709235,21.34774138,1803.6,1803.5,7.73668011]
[1746061709639,21.34774138,1803.6,1803.5,7.73668357]
[1746061709938,21.34774138,1803.6,1803.5,7.73668361]
[1746061710237,21.34774138,1803.6,1803.5,11.52468361]
[1746061710637,21.34774138,1803.6,1803.5,11.52468355]
[1746061711137,19.67844138,1803.6,1803.5,15.19068355]
[1746061711340,19.67844138,1803.6,1803.5,29.07375084]
[1746061711938,19.67844138,1803.6,1803.5,34.07375084]
[1746061712144,19.67844138,1803.6,1803.5,29.07375084]
[1746061713236,18.43590138,1803.6,1803.5,34.07375084]
[1746061713439,16.98432138,1803.6,1803.5,34.07375084]
[1746061713639,1.10823,1804.6,1804.4,1.10828]
[1746061713944,3.4435,1804.5,1804.4,1.10834]
[1746061714240,7.2315,1804.5,1804.4,41.90834]
[1746061714843,7.2315,1804.5,1804.4,42.08155697]
[1746061716144,8.33978,1804.5,1804.4,42.08155697]
[1746061716636,11.54758,1804.5,1804.4,40.97321697]
[1746061716838,13.33978,1804.5,1804.4,40.8]
[1746061717640,13.33978,1804.5,1804.3,1.1084]
[1746061717838,1.6352,1804.4,1804.3,1.1084]
[1746061718042,1.6352,1804.4,1804.3,42.0816357]
[1746061718341,5.4232,1804.4,1804.3,42.0816357]
[1746061718741,6.53154,1804.4,1804.3,42.0816357]
[1746061719041,5.4232,1804.4,1804.3,42.0816357]
[1746061719246,5.4232,1804.4,1804.3,41.9084]
[1746061720847,6.53154,1804.4,1804.3,41.9084]
[1746061724751,6.53154,1804.4,1804.3,42.08162769]
[1746061726855,6.53154,1804.4,1804.3,40.97322769]
[1746061727156,6.53154,1804.4,1804.3,40.8]
[1746061728857,6.53154,1804.4,1804.3,41.9084]
[1746061729059,6.53154,1804.4,1804.3,40.8]
[1746061729860,6.53154,1804.4,1804.3,41.9084]
[1746061730363,6.53154,1804.4,1804.3,42.0816292]
[1746061731368,5.4232,1804.4,1804.3,41.9084]
[1746061732163,1.6352,1804.4,1804.3,41.9084]
[1746061732764,2.74354,1804.4,1804.3,41.9084]
[1746061733164,2.74354,1804.4,1804.3,40.8]
[1746061734271,6.53154,1804.4,1804.3,40.8]
[1746061736371,1.10846,1804.2,1804.1,7.9813]
[1746061736574,1.10846,1804.2,1804.1,8.15454115]
[1746061736771,1.5903,1804.3,1804.1,47.84604115]
[1746061737076,2.44388,1804.4,1804.3,1.1084]
[1746061737369,2.8457,1804.8,1804.6,1.10819]
[1746061737574,1.10822,1804.6,1804.4,6.2249]
[1746061737872,4.31602,1804.6,1804.5,40.97322642]
[1746061738067,4.89622,1804.6,1804.5,40.8]
[1746061738270,6.9958,1804.6,1804.2,26.98368554]
[1746061738474,1.1084,1804.3,1804.2,21.15368554]
[1746061738675,1.10839,1804.4,1804.2,49.23147305]
[1746061738973,0.7978,1804.3,1804.2,49.23147305]
[1746061739173,1.9062,1804.3,1804.2,7.49626979]
[1746061739369,5.114,1804.3,1804.2,7.49626979]
[1746061739575,1.9062,1804.3,1804.2,7.49626979]
[1746061739777,1.9062,1804.3,1804.2,7.32302305]
[1746061739977,0.7978,1804.3,1804.2,7.32302305]
[1746061740276,1.9062,1804.3,1804.2,8.60474468]
[1746061740478,6.9958,1805.4,1804.3,2.77098]
[1746061740778,1.1084,1805.2,1805.1,1.10789]
[1746061740975,7.7936,1805.4,1805.3,1.10779]
[1746061741277,7.7936,1805.4,1805.2,1.10781]
[1746061741278,1.1084,1805.3,1805.2,1.10781]
[1746061741678,1.90553,1805.4,1805.3,1.10779]
[1746061741977,0.7978,1805.4,1805.3,1.10779]
[1746061742177,6.80196,1805.4,1805.1,1.6798]
[1746061742379,1.1084,1805.3,1805.2,0.17316471]
[1746061742676,3.788,1805.4,1805.2,1.10782]
[1746061742871,1.1084,1805.3,1805.2,1.90322]
[1746061743069,3.788,1805.4,1805.2,1.90322]
[1746061743375,1.1084,1805.4,1805.3,1.10779]
[1746061743780,2.21613,1805.4,1805.2,5.11101]
[1746061743978,1.1084,1805.3,1805.2,5.11101]
[1746061744176,2.21619,1805.3,1805.0,3.2078]
[1746061744480,1.10779,1805.3,1805.1,1.28105475]
[1746061744775,1.10773,1805.4,1805.2,1.1078]
[1746061745278,1.1084,1805.3,1805.1,2.83548]
[1746061745475,1.1084,1805.2,1805.1,1.10788]
[1746061745678,1.1084,1805.2,1805.1,1.28104695]
[1746061745976,3.788,1805.4,1805.3,1.10779]
[1746061746285,1.10764,1805.6,1805.4,1.1077]
[1746061746672,1.1084,1805.5,1805.4,1.1077]
[1746061746974,2.21608,1805.5,1805.3,1.10775]
[1746061747166,1.1084,1805.4,1805.3,1.10775]
[1746061747566,1.1084,1805.4,1805.3,41.90775]
[1746061747769,3.788,1805.5,1805.4,1.10773]
[1746061747979,3.788,1805.5,1805.4,3.67823]
[1746061748277,4.8964,1805.5,1805.4,3.67823]
[1746061749177,1.1084,1805.5,1805.4,3.67823]
[1746061749880,3.2078,1807.2,1805.4,13.24790733]
[1746061750179,2.76508,1808.2,1807.0,3.2078]
[1746061750370,1.1084,1807.2,1807.1,40.8]
[1746061750779,1.1084,1807.2,1807.1,41.90665]
[1746061750982,1.1084,1807.2,1807.1,40.8]
[1746061751180,13.1042,1807.2,1806.4,3.2078]
[1746061751380,1.1084,1806.7,1806.5,3.2078]
[1746061751579,1.1084,1806.8,1806.7,1.10693]
[1746061751777,1.1084,1806.8,1806.7,4.31473]
[1746061752178,4.4753,1807.1,1806.7,44.0078]
[1746061752476,1.10675,1807.0,1806.9,3.2078]
[1746061752682,1.1084,1806.8,1806.7,44.0078]
[1746061752981,2.21527,1806.8,1806.7,44.0078]
[1746061753177,6.84127,1806.8,1806.7,40.8]
[1746061753377,6.84127,1806.8,1806.4,3.2078]
[1746061753378,1.10697,1806.7,1806.4,3.2078]
[1746061753589,1.1084,1806.6,1806.4,4.31491]
[1746061753887,1.10696,1806.7,1806.5,40.8]
[1746061754082,4.6794,1806.7,1806.5,40.8]
[1746061754276,1.1084,1806.6,1806.5,41.90705]
[1746061754478,2.7072,1806.6,1806.5,45.11485]
[1746061754676,1.5988,1806.6,1806.5,45.11485]
[1746061754877,1.5988,1806.6,1806.5,44.0078]
[1746061755079,2.7072,1806.6,1806.5,44.0078]
[1746061755480,7.60219,1806.6,1806.5,40.8]
[1746061755687,6.4952,1806.6,1806.5,40.8]
[1746061755986,1.10711,1806.4,1806.3,3.2078]
[1746061756187,1.10718,1806.3,1806.0,1.10734]
[1746061756490,2.21567,1806.2,1805.9,4.9028]
[1746061756684,2.8367,1806.1,1805.9,3.2078]
[1746061756877,2.8367,1806.0,1805.9,3.2078]
[1746061757085,6.6247,1806.0,1805.9,3.2078]
[1746061757683,6.6247,1806.0,1805.2,8.59954]
[1746061757684,6.6247,1806.0,1805.6,3.2078]
[1746061757886,2.8367,1805.9,1805.7,1.10753]
[1746061758080,1.7283,1805.8,1805.7,1.10753]
[1746061758289,2.8367,1805.8,1805.6,3.2078]
[1746061758488,1.10761,1805.6,1805.4,3.2078]
[1746061758694,2.7921,1805.5,1805.4,3.2078]
[1746061759095,5.4717,1805.5,1805.4,4.31553]
[1746061759298,5.4717,1805.5,1805.4,45.11553]
[1746061759888,5.4717,1805.5,1805.4,46.69303]
[1746061761192,5.4717,1805.5,1805.4,44.0078]
[1746061761402,2.7674,1806.7,1805.6,2.76896]
[1746061761586,1.60112,1806.2,1806.1,4.3151]
[1746061761790,0.01992,1806.2,1806.1,9.3151]
[1746061761990,0.01992,1806.2,1806.1,11.0564]
[1746061762196,3.80792,1806.2,1806.1,11.0564]
[1746061762392,3.81124,1806.2,1806.1,51.8564]
[1746061763196,3.2078,1806.7,1806.1,50.7491]
[1746061763398,0.02988,1807.0,1806.9,1.10681]
[1746061763593,4.92296,1806.9,1806.8,3.2078]
[1746061763800,6.50416,1806.9,1806.8,4.31465]
[1746061763994,1.5812,1806.9,1806.8,4.31465]
[1746061764194,5.3692,1806.9,1806.8,4.31465]
[1746061764799,10.29216,1806.9,1806.8,3.20448]
[1746061765303,6.05696715,1806.9,1806.8,3.20448]
[1746061765504,7.16377715,1806.9,1806.7,5.83]
[1746061765806,1.10697,1806.7,1806.4,4.31489]
[1746061766006,1.10693,1806.7,1806.6,3.2078]
[1746061766206,9.81791,1806.7,1806.5,3.2078]
[1746061766499,4.92296,1806.6,1806.5,4.31153]
[1746061766806,3.788,1806.7,1806.5,3.20448]
[1746061767103,4.92296,1806.7,1806.6,1.10699]
[1746061767509,4.92296,1806.7,1806.6,1.10367]
[1746061767693,4.92296,1806.7,1806.5,4.31149]
[1746061767895,4.92296,1806.6,1806.5,3.20448]
[1746061768096,1.10713,1806.4,1806.3,3.2078]
[1746061768297,6.03009,1806.4,1806.3,3.20448]
[1746061768496,1.10726,1806.2,1806.0,4.31512]
[1746061768691,6.03022,1806.2,1806.0,4.31512]
[1746061768998,7.75546,1806.1,1806.0,3.2078]
[1746061769193,10.43616,1806.1,1806.0,4.31516]
[1746061769402,3.788,1806.1,1806.0,5.99576]
[1746061771407,3.788,1806.1,1806.0,5.99244]
[1746061771798,4.8953,1806.1,1806.0,4.88508]
[1746061771996,11.55316,1806.1,1806.0,3.20448]
[1746061773497,0.4442,1806.1,1806.0,15.13852]
[1746061773700,0.01328,1806.2,1806.1,1.1073]
[1746061774103,3.80128,1806.2,1806.1,46.9073]
[1746061774506,3.80128,1806.2,1806.1,46.90225328]
[1746061775705,9.83148,1806.2,1806.1,40.8]
[1746061776300,12.42888,1806.2,1806.1,40.8]
[1746061776506,3.80128,1806.2,1806.1,45.7683]
[1746061776806,5.38338,1806.2,1806.1,40.8]
[1746061777007,5.38338,1806.2,1806.1,41.9073]
[1746061777209,5.38338,1806.2,1806.1,40.8]
[1746061777402,10.30634,1806.2,1806.1,40.8]
[1746061777901,11.41358,1806.2,1806.1,40.8]
[1746061778300,10.30634,1806.2,1806.1,40.8]
[1746061778505,11.41358,1806.2,1806.1,40.8]
[1746061779402,10.30634,1806.2,1806.1,41.9073]
[1746061779603,11.41358,1806.2,1806.1,40.8]
[1746061785717,1.1073,1806.1,1806.0,3.20448]
[1746061785905,1.10754,1805.7,1805.6,9.03448]
[1746061786104,9.8185,1805.7,1805.6,44.0078]
[1746061786311,1.1076,1805.6,1805.4,14.19233458]
[1746061786512,8.48326,1805.6,1805.4,14.19233458]
[1746061786712,8.48326,1805.6,1805.5,48.12302305]
[1746061787112,12.27126,1805.6,1805.5,48.12302305]
[1746061787817,12.27126,1805.6,1805.5,40.8]
[1746061789215,1.10767,1805.5,1805.4,7.32302305]
[1746061789515,10.73883,1805.5,1805.4,7.32302305]
[1746061789714,12.41343,1805.5,1805.4,7.32302305]
[1746061790016,1.10779,1805.3,1805.2,14.19233458]
[1746061790311,6.03075,1805.3,1805.2,54.99233458]
[1746061790822,6.03075,1805.3,1805.2,44.0078]
[1746061791121,9.81875,1805.3,1805.2,44.0078]
[1746061792418,9.81875,1805.3,1805.2,3.2078]
[1746061792614,2.76967,1805.2,1805.0,3.2078]
[1746061792813,1.10791,1805.1,1805.0,3.2078]
[1746061793018,7.70317,1805.1,1805.0,3.2078]
[1746061793221,11.49117,1805.1,1805.0,3.2078]
[1746061794927,13.15314,1805.1,1804.8,3.2078]
[1746061795125,6.03099,1804.9,1804.8,3.2078]
[1746061796430,7.73419,1804.9,1804.8,3.2078]
[1746061797123,11.52219,1804.9,1804.8,3.2078]
[1746061800125,15.40519,1804.9,1804.8,3.2078]
[1746061800628,5.4912,1804.9,1804.8,3.2078]
[1746061800834,3.788,1804.9,1804.8,10.5748]
[1746061801035,3.788,1804.9,1804.8,11.2124]
[1746061801231,1.6031,1805.1,1804.8,10.1043]
[1746061801441,2.71105,1805.1,1805.0,3.2078]
[1746061802235,6.49905,1805.1,1805.0,3.2078]
[1746061803135,11.42201,1805.1,1805.0,3.2078]
[1746061805734,6.49905,1805.1,1805.0,3.2078]
[1746061806233,11.42201,1805.1,1805.0,3.2078]
[1746061806635,6.49905,1805.1,1805.0,3.2078]
[1746061807233,5.3911,1805.1,1805.0,4.31577]
[1746061807835,6.49901,1805.1,1805.0,3.2078]
[1746061808032,6.49901,1805.1,1805.0,4.31577]
[1746061808231,6.49901,1805.1,1805.0,3.2078]
[1746061808738,11.42197,1805.1,1805.0,3.2078]
[1746061809837,1.10797,1805.0,1804.9,1.10802]
[1746061810034,7.63323,1805.0,1804.9,4.31582]
[1746061810231,3.57877,1805.0,1804.9,3.2078]
[1746061810638,3.57877,1805.0,1804.9,4.31583]
[1746061811236,7.36677,1805.0,1804.9,3.2078]
[1746061811434,12.28973,1805.0,1804.9,3.2078]
[1746061814431,1.1081,1804.8,1804.7,40.8]
[1746061814638,6.03106,1804.8,1804.7,40.8]
[1746061815035,7.69686,1804.8,1804.7,40.8]
[1746061815344,11.48486,1804.8,1804.7,40.8]
[1746061815638,12.35846,1804.8,1804.7,40.8]
[1746061816039,11.48486,1804.8,1804.7,40.8]
[1746061816242,2.7739,1804.8,1804.7,45.11596]
[1746061816434,2.7739,1804.8,1804.7,40.8]
[1746061816942,2.7739,1804.8,1804.7,44.18100239]
[1746061817239,6.5619,1804.8,1804.7,44.18100239]
[1746061817445,6.5619,1804.8,1804.7,44.0078]
[1746061818139,2.7739,1804.8,1804.7,44.0078]
[1746061818346,2.7739,1804.8,1804.7,44.18100154]
[1746061818548,2.7739,1804.8,1804.7,44.0078]
[1746061819242,2.7739,1804.8,1804.7,45.11596]
[1746061819437,2.7739,1804.8,1804.7,45.28915933]
[1746061819639,1.6658,1804.8,1804.7,45.28915933]
[1746061819943,1.6658,1804.8,1804.7,45.92715933]
[1746061820442,7.69686,1804.8,1804.7,40.97319933]
[1746061820844,7.69686,1804.8,1804.7,0.17319933]
[1746061821143,1.10833,1804.5,1804.4,1.10833]
[1746061821350,1.10834,1804.4,1804.3,12.04005]
[1746061821649,1.10833,1804.5,1804.4,1.10834]
[1746061821946,2.76423,1804.5,1804.4,42.08156199]
[1746061822248,6.55223,1804.5,1804.4,40.8]
[1746061822451,6.55223,1804.5,1804.4,40.97322316]
[1746061822748,6.55223,1804.5,1804.4,40.97322343]
[1746061823145,2.76423,1804.5,1804.4,40.97322343]
[1746061823543,2.76423,1804.5,1804.4,42.08156343]
[1746061824052,7.68719,1804.5,1804.4,40.97322343]
[1746061824451,1.10846,1804.2,1804.1,10.98453458]
[1746061824647,6.03142,1804.2,1804.1,10.98453458]
[1746061824845,6.03142,1804.2,1804.1,51.78453458]
[1746061825148,6.03142,1804.2,1804.1,40.8]
[1746061825447,6.86602,1804.2,1804.1,41.90853]
[1746061825841,6.86602,1804.2,1804.1,40.8]
[1746061827050,5.75756,1804.2,1804.1,41.90853]
[1746061827254,3.788,1804.2,1804.1,41.90853]
[1746061827449,3.788,1804.2,1804.1,43.80683]
[1746061828249,1.7396,1804.3,1804.2,1.10846]
[1746061828443,1.7396,1804.3,1804.2,4.31626]
[1746061829151,2.848,1804.3,1804.2,4.31626]
[1746061829551,2.848,1804.3,1804.1,41.90849]
[1746061829552,1.10846,1804.2,1804.1,41.90849]
[1746061829751,8.45672,1804.2,1804.1,41.90849]
[1746061830153,7.34826,1804.2,1804.1,41.90849]
[1746061830350,1.96449,1804.4,1804.3,1.1084]
[1746061830651,6.8874,1804.4,1804.3,1.1084]
[1746061831149,8.486,1804.4,1804.3,1.1084]
[1746061832955,1.5986,1804.4,1804.3,1.1084]
[1746061833153,1.5986,1804.4,1804.3,2.3685]
[1746061833751,0.8615,1804.7,1804.3,1.2601]
[1746061834041,0.8615,1804.7,1804.2,9.03448]
[1746061834042,3.2078,1804.8,1804.4,7.87706]
[1746061834249,2.74841,1805.0,1804.8,1.10806]
[1746061834450,2.75233,1804.9,1804.8,4.31586]
[1746061834649,7.67529,1804.9,1804.8,4.31586]
[1746061834850,7.67529,1804.9,1804.8,3.2078]
[1746061835248,11.46329,1804.9,1804.8,3.2078]
[1746061835847,11.46329,1804.9,1804.7,1.10813]
[1746061835848,1.1081,1804.8,1804.7,1.10813]
[1746061836048,9.32626,1804.8,1804.7,1.10813]
[1746061836457,8.21816,1804.8,1804.7,1.10813]
[1746061837955,9.32626,1804.8,1804.7,1.10813]
[1746061838158,9.32626,1804.8,1804.6,4.31598]
[1746061838159,1.10816,1804.7,1804.6,4.31598]
[1746061838343,7.73422,1804.7,1804.6,3.2078]
[1746061838653,1.10826,1804.6,1804.4,14.19233458]
[1746061838853,4.92296,1804.5,1804.4,15.30067458]
[1746061839356,1.7031,1804.6,1804.5,1.10828]
[1746061839855,6.62606,1804.6,1804.5,1.10828]
[1746061840257,5.4911,1804.6,1804.5,1.10828]
[1746061840453,5.4911,1804.6,1804.5,2.36858]
[1746061841155,1.7031,1804.6,1804.5,2.36858]
[1746061841753,1.7031,1804.6,1804.5,2.54179084]
[1746061842160,1.7031,1804.6,1804.5,1.10828]
[1746061842755,6.62606,1804.6,1804.5,1.10828]
[1746061846858,7.73428,1804.6,1804.5,1.10828]
[1746061847758,1.10828,1804.5,1804.4,4.31609]
[1746061847962,7.58196,1804.5,1804.4,4.48930548]
[1746061848263,2.659,1804.5,1804.4,4.48930548]
[1746061848463,2.659,1804.5,1804.4,4.48930505]
[1746061849354,3.76728,1804.5,1804.4,4.48930786]
[1746061849660,7.58196,1804.5,1804.4,4.48930939]
[1746061850858,7.58196,1804.5,1804.4,4.48930995]
[1746061853055,7.58196,1804.5,1804.4,4.48931007]
[1746061853856,7.58196,1804.5,1804.4,4.48931032]
[1746061855960,7.58196,1804.5,1804.4,4.48931016]
[1746061856261,7.58196,1804.5,1804.4,4.48931014]
[1746061856959,7.58196,1804.5,1804.4,4.48931002]
[1746061858161,7.58196,1804.5,1804.4,4.31609]
[1746061858354,7.58196,1804.5,1804.4,4.48930998]
[1746061859763,7.58196,1804.5,1804.4,17.94533683]
[1746061860166,8.69024,1804.5,1804.4,17.94533683]
[1746061860462,8.69024,1804.5,1804.4,13.62924683]
[1746061860763,8.69024,1804.5,1804.4,13.45602685]
[1746061861156,12.47824,1804.5,1804.4,13.45602685]
[1746061862763,1.10836,1804.4,1804.3,1.10835]
[1746061863065,8.49102,1804.4,1804.3,1.10835]
[1746061863567,7.38266,1804.4,1804.3,1.10835]
[1746061863767,8.491,1804.4,1804.3,1.10835]
[1746061864165,12.279,1804.4,1804.3,1.10835]
[1746061864967,1.1084,1804.3,1804.2,4.31622]
[1746061865176,6.50356,1804.3,1804.2,4.48946253]
[1746061865667,7.61196,1804.3,1804.2,4.48946253]
[1746061866063,7.61196,1804.3,1804.2,4.48950253]
[1746061866268,11.39996,1804.3,1804.2,3.38104253]
[1746061866570,1.10846,1804.2,1804.1,10.98453458]
[1746061866765,8.54842,1804.2,1804.1,10.98453458]
[1746061867271,12.33642,1804.2,1804.1,10.98453458]
[1746061867670,1.10853,1804.1,1804.0,4.31638]
[1746061867866,7.61209,1804.1,1804.0,4.31638]
[1746061868065,7.61209,1804.1,1804.0,3.2078]
[1746061868265,11.40009,1804.1,1804.0,3.2078]
[1746061868466,1.10865,1803.9,1803.8,10.98453458]
[1746061868668,13.00841,1803.9,1803.8,10.98453458]
[1746061868970,14.80061,1803.9,1803.8,10.98453458]
[1746061869173,18.58861,1803.9,1803.8,10.98453458]
[1746061869667,21.79641,1803.9,1803.8,10.98453458]
[1746061870668,16.79641,1803.9,1803.8,10.98453458]
[1746061871570,16.79741,1803.9,1803.8,10.98453458]
[1746061871766,13.02741,1803.9,1803.8,10.98453458]
[1746061871965,14.48736,1803.9,1803.8,12.09324458]
[1746061872166,14.46936,1803.9,1803.8,1.10871]
[1746061872567,10.65509,1803.9,1803.8,1.10871]
[1746061872873,1.10871,1803.8,1803.7,2.84193]
[1746061873070,2.79321,1803.8,1803.7,2.84193]
[1746061874369,1.6845,1803.8,1803.7,2.84193]
[1746061875270,2.79321,1803.8,1803.7,2.84193]
[1746061875468,2.79321,1803.8,1803.7,1.10873]
[1746061875672,1.10877,1803.7,1803.6,2.00798]
[1746061875873,2.78447,1803.7,1803.6,2.00798]
[1746061876174,2.78447,1803.7,1803.6,1.10878]
[1746061877270,8.6535,1803.7,1803.2,3.2078]
[1746061877469,3.5847,1803.6,1803.5,1.10888]
[1746061878866,4.69353,1803.6,1803.5,1.10888]
[1746061879364,4.69353,1803.6,1803.4,2.72711]
[1746061879567,1.7092,1803.5,1803.4,2.72711]
[1746061879767,6.63216,1803.5,1803.4,2.72711]
[1746061879965,1.7092,1803.5,1803.4,2.72711]
[1746061881675,2.81809,1803.5,1803.4,2.72711]
[1746061882067,10.94887,1803.5,1803.1,2.77283]
[1746061882263,6.56386,1803.4,1803.3,1.10896]
[1746061882669,1.6409,1803.4,1803.3,1.10896]
[1746061882871,6.56386,1803.4,1803.3,1.10896]
[1746061884172,6.56386,1803.4,1803.0,7.84446]
[1746061884378,7.56636,1803.3,1803.2,4.31686]
[1746061885975,7.56636,1803.3,1803.2,1.10906]
[1746061886977,7.56636,1803.3,1803.1,1.10911]
[1746061887178,6.54886,1803.2,1803.1,1.10911]
[1746061887573,1.6259,1803.2,1803.1,1.10911]
[1746061888479,0.9392,1803.3,1803.2,1.10908]
[1746061888667,7.48806,1803.3,1803.2,1.10908]
[1746061889481,8.59708,1803.3,1803.2,1.10908]
[1746061889675,8.59708,1803.3,1803.0,4.1655]
[1746061889984,6.03204,1803.2,1803.1,1.10909]
[1746061890174,0.8951,1803.2,1803.1,1.10909]
[1746061890369,5.81806,1803.2,1803.1,1.10909]
[1746061891777,4.92296,1803.2,1803.0,6.93848]
[1746061891983,4.92296,1803.2,1803.1,1.10914]
[1746061895085,5.83286,1803.2,1803.1,1.10914]
[1746061896379,1.58965546,1803.2,1803.1,1.28248788]
[1746061899289,1.58965546,1803.2,1803.1,1.28248766]
[1746061900784,1.58965546,1803.2,1803.1,1.28248763]
[1746061902086,1.58965546,1803.2,1803.1,1.10914]
[1746061902286,1.58965546,1803.2,1803.1,1.28248767]
[1746061903997,2.69873546,1803.2,1803.1,0.17334767]
[1746061904287,5.90653546,1803.2,1803.1,0.17334767]
[1746061904592,5.90653546,1803.2,1803.0,1.10917]
[1746061904593,1.10914,1803.1,1803.0,1.10917]
[1746061904786,4.50519546,1803.1,1803.0,1.28253289]
[1746061905386,4.50519546,1803.1,1803.0,0.17336289]
[1746061905587,8.22519546,1803.1,1803.0,0.17336289]
[1746061905988,1.1092,1803.0,1802.9,1.10924]
[1746061906187,3.46495546,1803.0,1802.9,1.10924]
[1746061906495,2.35575546,1803.0,1802.9,1.10924]
[1746061906696,1.676,1803.0,1802.9,1.10924]
[1746061908190,1.676,1803.0,1802.9,1.28261102]
[1746061908388,1.676,1803.0,1802.9,2.90771102]
[1746061909997,1.676,1803.0,1802.9,3.92691102]
[1746061910395,0.9099,1803.2,1803.1,1.10914]
[1746061910598,3.23945546,1803.2,1803.1,1.10914]
[1746061911193,2.5597,1803.2,1803.1,1.10914]
[1746061911394,0.9983,1803.3,1803.2,1.10908]
[1746061911791,3.34175546,1803.3,1803.2,1.10908]
[1746061911991,4.6786,1803.5,1803.2,1.10908]
[1746061911992,3.72,1803.5,1803.4,1.10896]
[1746061912186,4.8715,1803.6,1803.5,1.10889]
[1746061912396,5.55125546,1803.6,1803.5,1.10889]
[1746061912598,7.61868546,1803.6,1803.5,1.10889]
[1746061912793,6.50985546,1803.6,1803.5,1.10889]
[1746061912994,7.61868546,1803.6,1803.4,1.6962]
[1746061913191,1.6637,1803.5,1803.4,2.80516]
[1746061913591,1.6637,1803.5,1803.4,43.77848166]
[1746061915399,1.6637,1803.5,1803.4,43.60516]
[1746061915598,1.6637,1803.5,1803.4,43.77846756]
[1746061916702,1.6637,1803.5,1803.4,43.77848344]
[1746061917300,3.45234546,1803.5,1803.3,8.44389746]
[1746061917600,1.72805546,1803.4,1803.3,8.44389746]
[1746061917800,3.34025546,1803.4,1803.3,8.44389746]
[1746061918002,3.34025546,1803.4,1803.3,8.61723204]
[1746061919493,3.34025546,1803.4,1803.3,1.28230458]
[1746061919694,3.34025546,1803.4,1803.3,1.10897]
[1746061920098,3.34025546,1803.4,1803.3,1.28230407]
[1746061921901,3.34025546,1803.4,1803.3,1.10897]
[1746061922699,3.34025546,1803.4,1803.3,1.2822947]
[1746061923002,3.34025546,1803.4,1803.3,1.10897]
[1746061925000,3.34025546,1803.4,1803.3,1.28230229]
[1746061925594,2.29195546,1803.4,1803.3,1.28230214]
[1746061925801,1.6122,1803.4,1803.3,3.96970214]
[1746061926104,1.6122,1803.4,1803.3,7.75770214]
[1746061926305,0.9586,1803.6,1803.5,1.10889]
[1746061926503,2.6764,1803.6,1803.5,1.10889]
[1746061926706,3.35615546,1803.6,1803.5,1.10889]
[1746061926904,3.35615546,1803.6,1803.5,41.90889]
[1746061928006,4.46498546,1803.6,1803.5,41.90889]
[1746061928899,3.35615546,1803.6,1803.5,41.90889]
[1746061931494,4.46498546,1803.6,1803.5,41.90889]
[1746061932908,1.10454035,1803.5,1803.4,7.34652348]
[1746061933112,3.51129581,1803.5,1803.4,7.34652348]
[1746061933909,2.40675546,1803.5,1803.4,8.45548348]
[1746061934097,3.51564546,1803.5,1803.4,7.34652348]
[1746061934706,2.83589,1803.5,1803.4,7.34652348]
[1746061934907,3.51564546,1803.5,1803.4,7.34652348]
[1746061935205,7.30364546,1803.5,1803.4,8.45548348]
[1746061935809,7.30364546,1803.5,1803.4,1.10896]
[1746061936008,1.10896,1803.4,1803.3,1.10897]
[1746061936209,3.36761546,1803.4,1803.3,1.10897]
[1746061936409,1.10904,1803.3,1803.2,1.10904]
[1746061936611,5.37949546,1803.3,1803.2,1.10904]
[1746061936810,4.27045546,1803.3,1803.2,1.10904]
[1746061937298,3.5907,1803.3,1803.2,1.10904]